bitfinex-derivatives/quotes_SOLF0:USTF0_20250424
["timestamp","ask_amount","ask_price","bid_price","bid_amount"]
[1745520382339,24.9,151.89,151.82,39.77718461]
[1745520382540,87.90075149,151.92,151.82,39.77718461]
[1745520382742,6.5814,151.9,151.86,6.5826]
[1745520382942,61.01475149,151.92,151.87,24.9]
[1745520383344,6.5812,151.9,151.87,24.9]
[1745520383743,6.5809,151.91,151.87,24.9]
[1745520383943,61.01475149,151.92,151.87,24.9]
[1745520384244,6.5813,151.9,151.87,24.9]
[1745520384545,61.01475149,151.92,151.87,24.9]
[1745520384744,6.5837,151.84,151.83,28.8132]
[1745520385046,14.87718461,151.89,151.83,26.9003]
[1745520385244,75.8919361,151.92,151.83,26.9003]
[1745520385739,14.87718461,151.92,151.83,26.9003]
[1745520385942,14.87718461,151.92,151.84,1.8733]
[1745520386346,6.5821,151.88,151.84,1.8733]
[1745520386646,14.87718461,151.92,151.84,1.8733]
[1745520386947,14.87718461,151.92,151.84,8.457]
[1745520387648,14.87718461,151.92,151.84,1.8733]
[1745520388348,6.5827,151.87,151.84,1.8733]
[1745520388544,14.87718461,151.92,151.84,1.8733]
[1745520388847,6.5828,151.87,151.84,1.8733]
[1745520389347,14.87718461,151.92,151.84,1.8733]
[1745520389648,14.87718461,151.86,151.83,24.9]
[1745520390345,6.5837,151.84,151.83,24.9]
[1745520396152,6.5835,151.85,151.83,24.9]
[1745520396348,14.87718461,151.9,151.83,24.9]
[1745520398152,6.5831,151.86,151.83,31.4841]
[1745520398352,6.5831,151.86,151.83,24.9]
[1745520398853,6.5831,151.86,151.83,31.4839]
[1745520399054,85.91475149,151.94,151.83,24.9]
[1745520399253,14.87718461,151.91,151.83,24.9]
[1745520399452,14.87718461,151.91,151.84,6.5835]
[1745520399654,6.5823,151.88,151.84,6.5835]
[1745520399955,6.5823,151.88,151.85,6.5833]
[1745520400256,14.87718461,151.91,151.83,26.8435]
[1745520400654,14.87718461,151.91,151.85,6.5832]
[1745520401155,6.5818,151.89,151.85,6.5832]
[1745520402357,6.582,151.88,151.85,6.5832]
[1745520402558,14.87718461,151.91,151.84,6.5835]
[1745520402855,6.5825,151.87,151.84,6.5835]
[1745520403056,14.87718461,151.91,151.83,33.4274]
[1745520403357,14.87718461,151.91,151.83,26.8435]
[1745520403550,6.5826,151.87,151.84,6.5837]
[1745520404951,6.5822,151.88,151.85,6.5831]
[1745520405863,6.5818,151.89,151.86,6.5828]
[1745520406161,14.87718461,151.93,151.87,24.88]
[1745520406360,6.5814,151.9,151.87,31.4623]
[1745520406661,6.5814,151.9,151.87,24.88]
[1745520407458,6.5816,151.89,151.87,24.88]
[1745520407657,14.87718461,151.91,151.87,24.88]
[1745520408052,6.582,151.88,151.87,24.88]
[1745520408860,14.87718461,151.89,151.84,24.88]
[1745520409259,6.5831,151.86,151.84,24.88]
[1745520409862,6.5826,151.87,151.84,24.88]
[1745520411757,61.01475149,151.96,151.88,6.5817]
[1745520412058,61.01475149,151.96,151.89,14.87718461]
[1745520412262,61.01475149,151.96,151.91,14.87718461]
[1745520412457,67.59335149,151.96,151.92,24.88]
[1745520412961,67.59335149,151.96,151.92,31.4602]
[1745520413365,6.579,151.95,151.92,31.4602]
[1745520415766,67.59345149,151.96,151.93,6.5796]
[1745520415966,61.01475149,151.96,151.93,14.87718461]
[1745520416166,61.01475149,151.96,151.95,14.87718461]
[1745520416363,61.01475149,151.96,151.95,28.24330231]
[1745520416563,155.61691948,151.99,151.95,21.66430231]
[1745520416764,155.61691948,151.99,151.96,24.86]
[1745520417265,155.61691948,151.99,151.97,21.45528461]
[1745520420163,162.19431948,151.99,151.97,14.87718461]
[1745520421569,155.61691948,151.99,151.97,21.45528461]
[1745520422272,38.96874,152.0,151.97,21.45528461]
[1745520422467,32.39174,152.0,151.98,6.5775]
[1745520422672,32.39174,152.0,151.99,14.87718461]
[1745520423868,32.39174,152.0,151.99,21.45438461]
[1745520424171,6.5756,152.03,151.99,14.87718461]
[1745520424367,6.5756,152.03,152.0,24.86]
[1745520424573,2.0076,152.05,152.0,24.86]
[1745520424967,6.5764,152.01,152.0,24.86]
[1745520425171,14.87718461,152.04,151.96,24.86]
[1745520425672,14.87718461,152.04,151.96,31.4384]
[1745520426072,6.5775,151.99,151.96,31.4384]
[1745520426371,6.5775,151.99,151.96,24.86]
[1745520427066,6.5778,151.98,151.96,24.86]
[1745520427272,14.87718461,152.04,151.96,24.86]
[1745520427573,6.577,152.0,151.96,31.4385]
[1745520428274,6.577,152.0,151.97,6.5781]
[1745520428477,14.87718461,152.04,151.96,24.86]
[1745520429376,14.87718461,152.0,151.96,24.86]
[1745520429578,14.87718461,152.02,151.96,24.86]
[1745520430478,6.5772,151.99,151.96,24.86]
[1745520430879,14.87718461,152.02,151.96,31.4383]
[1745520431079,6.5771,152.0,151.96,31.4383]
[1745520431880,14.87718461,152.04,151.96,24.86]
[1745520432079,14.87718461,152.0,151.93,24.84]
[1745520432479,6.5782,151.97,151.93,31.4197]
[1745520433880,6.5785,151.96,151.93,31.4197]
[1745520434072,6.5785,151.96,151.93,24.84]
[1745520435277,6.5779,151.98,151.94,6.5791]
[1745520435482,14.87718461,152.02,151.94,21.45628461]
[1745520435684,14.87718461,152.02,151.94,14.87718461]
[1745520435981,14.87718461,152.04,151.94,14.87718461]
[1745520436179,2.0076,152.05,151.96,14.87718461]
[1745520436382,2.0076,152.05,151.97,24.84]
[1745520436583,2.0076,152.05,151.98,6.5775]
[1745520437182,2.0076,152.05,151.97,31.4179]
[1745520437384,2.0076,152.05,151.97,24.84]
[1745520437684,6.5766,152.01,151.97,31.418]
[1745520437982,2.0076,152.05,151.97,24.84]
[1745520438383,6.5757,152.03,151.99,6.577]
[1745520438578,2.0076,152.05,151.97,24.84]
[1745520438783,6.5766,152.01,151.97,31.4178]
[1745520440183,2.0076,152.05,151.97,24.84]
[1745520440481,76.91779416,152.1,152.02,14.87718461]
[1745520440682,6.574,152.07,152.03,31.4153]
[1745520441082,62.04060955,152.1,152.03,24.84]
[1745520441281,6.5736,152.08,152.04,6.5748]
[1745520442188,62.04060955,152.1,152.04,14.87718461]
[1745520442689,6.5734,152.08,152.04,14.87718461]
[1745520443191,62.04060955,152.1,152.03,24.84]
[1745520443383,76.91779416,152.1,152.03,24.84]
[1745520443588,14.87718461,152.08,152.03,24.84]
[1745520443787,6.575,152.05,152.03,24.84]
[1745520444087,14.87718461,152.08,152.03,24.84]
[1745520444289,6.5742,152.06,152.03,24.84]
[1745520446089,14.87718461,152.05,151.98,4.0128]
[1745520446290,16.88618461,152.05,151.99,24.84]
[1745520446486,6.5759,152.03,151.99,31.4172]
[1745520446792,16.88618461,152.05,151.99,24.84]
[1745520447392,6.5762,152.02,151.99,24.84]
[1745520449390,6.5762,152.02,151.99,31.4172]
[1745520449593,16.88618461,152.05,151.99,31.4172]
[1745520449793,16.88618461,152.05,151.99,24.84]
[1745520450495,14.87718461,152.05,151.99,24.84]
[1745520450997,6.5757,152.03,151.99,31.4171]
[1745520451196,14.87718461,152.05,151.99,24.84]
[1745520451392,14.87718461,152.03,151.99,24.84]
[1745520452592,6.5764,152.01,151.99,24.84]
[1745520452895,14.87718461,152.01,151.95,24.84]
[1745520453297,6.5775,151.99,151.95,31.4187]
[1745520454193,14.87718461,152.01,151.95,24.84]
[1745520454498,14.87718461,151.99,151.95,24.84]
[1745520455598,6.5767,152.01,151.97,6.578]
[1745520455793,41.72518461,152.05,151.96,14.87718461]
[1745520455991,41.72518461,152.05,151.97,6.77828067]
[1745520456191,6.5762,152.02,151.98,6.5776]
[1745520456601,41.72518461,152.05,151.98,6.5776]
[1745520456803,6.5766,152.01,151.97,6.578]
[1745520457098,6.5766,152.01,151.98,6.78560427]
[1745520457298,6.5766,152.01,151.98,6.5776]
[1745520457501,2.008,152.05,151.99,24.84]
[1745520457796,2.008,152.05,152.0,6.5767]
[1745520457994,6.5756,152.03,151.99,24.84]
[1745520458198,2.008,152.05,152.0,6.7848038]
[1745520458398,2.008,152.05,152.01,6.5763]
[1745520458596,6.5747,152.05,151.99,24.84]
[1745520458797,6.5747,152.05,152.0,6.78491204]
[1745520458997,6.5747,152.05,152.01,13.36091204]
[1745520459299,6.5747,152.05,152.01,6.576]
[1745520459800,5.9624,152.1,152.02,14.87718461]
[1745520460003,5.9624,152.1,151.93,370.0247]
[1745520460004,39.71718461,152.12,152.04,14.87718461]
[1745520460301,39.71718461,152.12,152.04,39.71718461]
[1745520460604,6.5726,152.1,152.05,6.7814726]
[1745520460902,6.5733,152.09,152.04,24.84]
[1745520461606,6.5733,152.09,152.06,6.574]
[1745520461806,6.5733,152.09,152.04,39.71718461]
[1745520462104,6.5726,152.1,152.06,6.574]
[1745520462306,14.87718461,152.12,152.06,6.574]
[1745520462806,76.91779416,152.13,152.04,39.71718461]
[1745520463005,76.91779416,152.13,152.05,6.77686829]
[1745520463207,6.5725,152.1,152.06,6.574]
[1745520463507,6.5725,152.1,152.04,39.71718461]
[1745520463706,6.5725,152.1,152.05,6.77516725]
[1745520463907,6.5725,152.1,152.04,39.71718461]
[1745520464106,6.5725,152.1,152.05,6.7745223]
[1745520464405,6.5725,152.1,152.04,39.71718461]
[1745520464605,6.5725,152.1,152.05,6.77203327]
[1745520464806,6.5725,152.1,152.06,6.5739]
[1745520465007,6.5725,152.1,152.04,39.71718461]
[1745520465207,6.5722,152.11,152.05,6.772096]
[1745520465408,14.87718461,152.13,152.07,6.5738]
[1745520465910,6.5725,152.1,152.07,6.5738]
[1745520466312,6.5725,152.1,152.06,6.574]
[1745520468114,6.5722,152.11,152.07,6.5737]
[1745520468310,1.9284,152.14,152.06,14.87718461]
[1745520468710,14.87718461,152.11,152.02,14.87718461]
[1745520468912,14.87718461,152.11,152.03,31.56721442]
[1745520469208,1.9284,152.14,152.06,14.87718461]
[1745520469510,1.9583,152.15,152.08,14.87718461]
[1745520469712,6.5718,152.12,152.07,31.3736]
[1745520470211,6.571,152.14,152.09,6.5726]
[1745520470705,14.87718461,152.17,152.08,18.90058461]
[1745520470910,14.87718461,152.15,152.08,4.0234]
[1745520471315,6.5716,152.13,152.08,10.5965]
[1745520471512,14.87718461,152.15,152.08,10.5965]
[1745520471813,6.5712,152.13,152.09,6.5727]
[1745520472011,14.87718461,152.17,152.08,18.90058461]
[1745520472410,6.5717,152.12,152.08,25.47368461]
[1745520474217,6.5714,152.13,152.09,6.5729]
[1745520474608,14.87718461,152.15,152.07,24.8]
[1745520474916,14.87718461,152.11,152.07,24.8]
[1745520475314,6.5739,152.07,152.04,24.8]
[1745520476216,14.87718461,152.11,152.04,31.375]
[1745520476516,14.87718461,152.11,152.04,24.8]
[1745520476718,6.5738,152.07,152.04,24.8]
[1745520476916,14.87718461,152.07,152.04,24.8]
[1745520477316,6.5745,152.06,152.04,24.8]
[1745520480417,14.87718461,152.07,152.01,26.7321]
[1745520481520,14.87718461,152.07,152.02,6.78964043]
[1745520481721,14.87718461,152.07,152.01,26.7321]
[1745520481923,6.5742,152.06,152.02,13.36505977]
[1745520482219,6.5742,152.06,152.03,6.78925977]
[1745520482420,21.45118461,152.07,152.03,6.5755]
[1745520482616,14.87718461,152.09,152.01,26.7321]
[1745520482815,14.87718461,152.09,152.02,6.78904514]
[1745520483017,6.5736,152.08,152.03,6.78904514]
[1745520483313,6.5736,152.08,152.04,6.78904514]
[1745520483514,6.5736,152.08,152.01,26.7321]
[1745520483719,6.5736,152.08,152.02,6.7880221]
[1745520483922,21.45038461,152.09,152.03,6.78784718]
[1745520484122,6.5732,152.09,152.05,6.5744]
[1745520484421,6.5734,152.08,152.05,31.3744]
[1745520484923,6.5738,152.07,152.05,24.8]
[1745520485224,14.87718461,152.11,152.05,24.8]
[1745520485521,6.5734,152.08,152.05,31.3743]
[1745520486923,6.5734,152.08,152.06,6.5742]
[1745520487127,6.5734,152.08,152.05,24.8]
[1745520487316,6.5738,152.07,152.05,24.8]
[1745520487824,6.5735,152.08,152.05,24.8]
[1745520488124,6.5735,152.08,152.05,31.3746]
[1745520488624,6.573,152.09,152.07,6.5737]
[1745520488826,14.87718461,152.09,152.05,24.8]
[1745520489322,6.5735,152.08,152.05,24.8]
[1745520489622,14.87718461,152.11,152.05,24.8]
[1745520489922,6.5733,152.09,152.05,31.3743]
[1745520490321,14.87718461,152.11,152.05,24.8]
[1745520490625,14.87718461,152.09,152.05,24.8]
[1745520490822,6.5741,152.07,152.05,24.8]
[1745520492523,14.87718461,152.11,152.05,24.8]
[1745520492826,14.87718461,152.11,152.05,31.3743]
[1745520493026,6.5732,152.09,152.05,31.3743]
[1745520493322,6.5732,152.09,152.05,24.8]
[1745520493527,14.87718461,152.11,152.06,6.574]
[1745520493828,14.87718461,152.11,152.05,24.8]
[1745520494221,14.87718461,152.09,152.01,1.9321]
[1745520494421,14.87718461,152.07,152.02,24.8]
[1745520495327,6.5753,152.04,152.02,24.8]
[1745520497329,6.5748,152.05,152.02,24.8]
[1745520497831,6.5753,152.04,152.02,24.8]
[1745520498025,14.87718461,152.08,151.98,473.68]
[1745520498226,14.87718461,152.03,151.99,6.78302424]
[1745520498526,6.5761,152.02,151.98,498.48]
[1745520498730,6.5761,152.02,151.99,6.78426544]
[1745520498930,6.5761,152.02,151.98,498.48]
[1745520499227,6.5761,152.02,151.99,6.78427003]
[1745520499421,6.5761,152.02,151.98,498.48]
[1745520499626,6.5761,152.02,151.99,13.36479388]
[1745520499929,6.5761,152.02,151.99,6.577]
[1745520500730,14.87718461,152.03,151.98,24.8]
[1745520500935,14.87718461,151.99,151.95,24.8]
[1745520501232,14.87718461,151.99,151.96,6.79455021]
[1745520501436,14.87718461,151.99,151.95,24.8]
[1745520501933,6.5781,151.97,151.95,24.8]
[1745520502337,14.87718461,151.99,151.95,24.8]
[1745520502536,6.5778,151.98,151.95,24.8]
[1745520502736,14.87718461,151.97,151.95,24.8]
[1745520502933,14.87718461,151.97,151.92,25.53508]
[1745520503137,6.5788,151.96,151.93,6.79552312]
[1745520503338,6.5788,151.96,151.92,32.11528]
[1745520504337,21.45538461,151.97,151.93,6.5798]
[1745520504841,21.45538461,151.97,151.92,32.11508]
[1745520505539,14.87718461,151.97,151.93,6.5797]
[1745520506238,21.45558461,151.97,151.93,6.5797]
[1745520507437,14.87718461,151.97,151.92,0.73508]
[1745520507640,14.87718461,151.93,151.85,26.8143]
[1745520507838,14.87718461,151.93,151.86,6.77810225]
[1745520508038,6.5805,151.92,151.87,6.77810225]
[1745520508238,11.45768461,151.93,151.85,26.8143]
[1745520508441,11.45768461,151.93,151.86,6.77232374]
[1745520508639,11.45768461,151.93,151.87,6.5822]
[1745520508836,6.5807,151.91,151.87,6.5822]
[1745520510043,6.5813,151.9,151.87,6.5822]
[1745520511545,6.5823,151.88,151.85,31.383]
[1745520512346,6.5825,151.87,151.85,24.8]
[1745520512847,14.87718461,151.89,151.85,24.8]
[1745520513140,6.5829,151.86,151.85,24.8]
[1745520513346,14.87718461,151.87,151.81,498.5]
[1745520513540,14.87718461,151.87,151.81,24.82]
[1745520513743,6.584,151.84,151.81,24.82]
[1745520514047,14.87718461,151.85,151.81,24.82]
[1745520514345,14.87718461,151.85,151.78,31.4063]
[1745520514546,14.87718461,151.85,151.78,24.82]
[1745520514942,6.584,151.84,151.79,6.5856]
[1745520516050,21.46068461,151.85,151.8,6.5854]
[1745520516449,21.46068461,151.85,151.78,24.82]
[1745520516646,21.46068461,151.85,151.79,6.5856]
[1745520516849,6.5838,151.84,151.79,6.5856]
[1745520517449,21.46058461,151.85,151.8,6.5852]
[1745520517750,21.46058461,151.85,151.78,24.82]
[1745520518055,21.46058461,151.85,151.81,6.585]
[1745520518746,14.87718461,151.87,151.85,6.5832]
[1745520518952,5.7889,151.88,151.82,24.82]
[1745520519245,5.7889,151.88,151.82,39.69718461]
[1745520519452,39.69718461,151.91,151.82,39.69718461]
[1745520519648,14.87718461,151.93,151.84,14.87718461]
[1745520520049,14.87718461,151.91,151.82,39.69718461]
[1745520520453,6.5812,151.9,151.86,6.5826]
[1745520520655,24.82,151.98,151.88,14.87718461]
[1745520520955,6.5797,151.94,151.89,6.5814]
[1745520521344,14.87718461,151.95,151.88,24.82]
[1745520522152,2.039,151.94,151.88,24.82]
[1745520523053,6.5811,151.9,151.88,24.82]
[1745520523255,14.87718461,151.93,151.88,24.82]
[1745520523452,14.87718461,151.91,151.85,24.8]
[1745520524556,6.584,151.84,151.81,24.8]
[1745520524754,24.8,151.9,151.81,24.8]
[1745520525053,6.5822,151.88,151.84,6.5835]
[1745520525553,6.5833,151.85,151.81,24.8]
[1745520525759,14.87718461,151.87,151.81,24.8]
[1745520526053,14.87718461,151.87,151.81,25.87794]
[1745520526253,6.584,151.84,151.81,25.87794]
[1745520527453,14.87718461,151.87,151.81,25.87794]
[1745520527659,14.87718461,151.85,151.81,25.87794]
[1745520527853,14.87718461,151.85,151.81,1.07794]
[1745520528162,6.5846,151.82,151.81,1.07794]
[1745520532760,6.5859,151.79,151.78,24.82]
[1745520532954,6.5859,151.79,151.75,24.82]
[1745520533155,6.5859,151.79,151.75,31.4074]
[1745520533355,14.87718461,151.81,151.75,31.4074]
[1745520533860,14.87718461,151.81,151.76,6.5871]
[1745520534360,6.5858,151.8,151.76,6.5871]
[1745520534751,1.9731,151.84,151.78,6.5863]
[1745520534958,1.9731,151.84,151.76,14.87718461]
[1745520535362,6.5849,151.82,151.78,6.5862]
[1745520535860,1.9731,151.84,151.76,14.87718461]
[1745520536062,14.87718461,151.83,151.75,24.82]
[1745520536563,14.87718461,151.83,151.76,6.5871]
[1745520537264,6.5857,151.8,151.76,31.4071]
[1745520538264,6.586,151.79,151.76,24.82]
[1745520538964,6.586,151.79,151.76,31.4071]
[1745520540066,6.5856,151.8,151.76,31.4071]
[1745520540766,6.5851,151.81,151.77,6.5864]
[1745520540965,14.87718461,151.83,151.77,6.5864]
[1745520541163,14.87718461,151.84,151.76,39.69718461]
[1745520541363,14.87718461,151.84,151.78,6.5861]
[1745520541664,14.87718461,151.84,151.76,39.69718461]
[1745520542066,6.5853,151.81,151.77,6.5863]
[1745520542265,6.5853,151.81,151.76,39.69718461]
[1745520542965,6.5853,151.81,151.77,6.5864]
[1745520544764,28.04988461,151.78,151.58,13.1897]
[1745520544961,14.87718461,151.71,151.61,18.84808461]
[1745520545155,14.87718461,151.69,151.62,6.77691327]
[1745520545366,14.87718461,151.65,151.55,39.69718461]
[1745520545558,14.87718461,151.59,151.56,6.79090352]
[1745520545763,6.596,151.56,151.53,24.82]
[1745520545962,14.87718461,151.57,151.53,24.82]
[1745520546162,14.87718461,151.57,151.5,87.61673397]
[1745520546363,6.5971,151.54,151.5,87.61673397]
[1745520546762,14.87718461,151.57,151.5,87.61673397]
[1745520547159,14.87718461,151.61,151.52,14.87718461]
[1745520547662,23.85442726,151.63,151.51,23.85442726]
[1745520548058,6.594,151.61,151.51,23.85442726]
[1745520548266,23.85442726,151.6,151.5,87.61673397]
[1745520549169,6.5946,151.59,151.51,24.84]
[1745520549663,23.85442726,151.6,151.51,24.84]
[1745520550169,30.44862726,151.6,151.51,31.4377]
[1745520550368,23.85442726,151.63,151.51,24.84]
[1745520550866,23.85442726,151.63,151.52,23.85442726]
[1745520552465,23.85442726,151.63,151.55,6.5959]
[1745520552669,23.85442726,151.63,151.56,24.82]
[1745520553169,30.44772726,151.63,151.56,24.82]
[1745520553367,23.85442726,151.63,151.56,24.82]
[1745520554271,6.5934,151.62,151.56,24.82]
[1745520554469,23.85442726,151.63,151.56,24.82]
[1745520555265,34.16382726,151.68,151.56,24.82]
[1745520555266,23.85442726,151.66,151.56,24.82]
[1745520555765,30.44612726,151.66,151.58,6.5947]
[1745520555971,23.85442726,151.66,151.56,24.82]
[1745520556272,23.85442726,151.66,151.59,6.5945]
[1745520556472,23.85442726,151.66,151.6,24.84]
[1745520557572,30.44632726,151.66,151.6,24.84]
[1745520557972,23.85442726,151.66,151.6,24.84]
[1745520558275,30.44612726,151.66,151.6,24.84]
[1745520558468,23.85442726,151.66,151.5,1.8504]
[1745520558668,23.85442726,151.66,151.52,23.85442726]
[1745520558876,6.5926,151.64,151.56,6.5956]
[1745520559174,23.85442726,151.66,151.57,24.84]
[1745520559372,6.5929,151.63,151.57,31.4354]
[1745520560775,6.5933,151.62,151.57,24.84]
[1745520561975,6.593,151.63,151.57,31.4353]
[1745520562175,6.593,151.63,151.57,24.84]
[1745520563076,6.593,151.63,151.58,6.595]
[1745520564175,23.85442726,151.66,151.57,24.84]
[1745520564375,52.42582726,151.68,151.57,24.84]
[1745520564573,6.592,151.65,151.57,24.84]
[1745520565075,6.592,151.65,151.61,6.5934]
[1745520565275,6.5916,151.66,151.61,6.5934]
[1745520565476,6.5916,151.66,151.57,26.8852]
[1745520566177,6.5912,151.67,151.57,26.8852]
[1745520566478,52.42582726,151.68,151.57,26.8852]
[1745520566780,52.42582726,151.68,151.63,6.5926]
[1745520566781,6.5913,151.67,151.63,6.5926]
[1745520567077,50.71422726,151.71,151.62,24.84]
[1745520567577,6.5905,151.69,151.62,24.84]
[1745520567778,50.71422726,151.71,151.62,24.84]
[1745520567974,6.5891,151.72,151.62,24.84]
[1745520568181,24.39437726,151.74,151.64,23.85442726]
[1745520568481,0.53995,151.74,151.65,5.9284]
[1745520568678,0.53995,151.74,151.66,24.84]
[1745520569183,6.5887,151.73,151.68,6.5903]
[1745520569677,7.12825,151.74,151.69,6.5901]
[1745520569880,0.53995,151.74,151.7,24.84]
[1745520571177,0.53995,151.74,151.71,6.5891]
[1745520571377,0.53995,151.74,151.7,24.84]
[1745520571680,7.12825,151.74,151.7,24.84]
[1745520571979,0.53995,151.74,151.7,24.84]
[1745520572382,0.53995,151.74,151.7,31.4295]
[1745520572882,7.12825,151.74,151.7,31.4295]
[1745520574984,0.53995,151.74,151.7,24.84]
[1745520575586,0.53995,151.74,151.71,6.589]
[1745520576388,0.53995,151.74,151.7,24.84]
[1745520576890,0.53995,151.74,151.72,6.5885]
[1745520577586,0.53995,151.74,151.71,6.5892]
[1745520577791,0.53995,151.74,151.7,24.84]
[1745520578283,0.53995,151.74,151.71,6.589]
[1745520578684,0.53995,151.74,151.7,24.84]
[1745520579287,6.5865,151.78,151.71,14.87952339]
[1745520579487,14.87952339,151.81,151.73,14.87952339]
[1745520579689,14.87952339,151.81,151.75,6.5875]
[1745520579890,6.5861,151.79,151.74,24.82]
[1745520580190,20.65822339,151.83,151.77,6.5865]
[1745520580489,20.65822339,151.83,151.74,24.82]
[1745520580684,14.87952339,151.81,151.74,24.82]
[1745520580883,14.87952339,151.79,151.74,24.82]
[1745520581084,14.87952339,151.77,151.74,24.82]
[1745520581283,14.87952339,151.77,151.71,24.82]
[1745520581492,6.5881,151.74,151.71,24.82]
[1745520582191,14.87952339,151.77,151.71,24.82]
[1745520583292,23.80673728,151.78,151.71,24.82]
[1745520583594,6.5883,151.74,151.71,24.82]
[1745520583796,23.80673728,151.78,151.71,24.82]
[1745520584094,6.5881,151.74,151.71,24.82]
[1745520584394,23.80673728,151.78,151.71,24.82]
[1745520586603,6.5881,151.74,151.71,24.82]
[1745520587001,23.80673728,151.78,151.71,24.82]
[1745520587801,6.5884,151.74,151.71,24.82]
[1745520588103,23.80673728,151.78,151.71,24.82]
[1745520588307,6.5883,151.74,151.71,24.82]
[1745520588704,23.80673728,151.78,151.71,24.82]
[1745520589504,6.5883,151.74,151.71,24.82]
[1745520590006,23.80673728,151.78,151.71,24.82]
[1745520590206,6.5887,151.73,151.71,24.82]
[1745520590505,23.80673728,151.78,151.71,24.82]
[1745520591305,6.5889,151.73,151.71,24.82]
[1745520591706,23.80673728,151.78,151.71,24.82]
[1745520592405,6.5883,151.74,151.71,24.82]
[1745520593407,6.5886,151.73,151.71,24.82]
[1745520593608,23.80673728,151.78,151.71,24.82]
[1745520594308,6.5888,151.73,151.71,24.82]
[1745520594909,6.5889,151.72,151.71,24.82]
[1745520598212,6.5887,151.73,151.71,24.82]
[1745520599109,6.5889,151.72,151.71,24.82]
[1745520601009,6.5887,151.73,151.71,24.82]
[1745520601413,6.5889,151.72,151.71,24.82]
[1745520602012,6.5887,151.73,151.71,24.82]
[1745520602310,23.80673728,151.78,151.71,24.82]
[1745520602512,6.5889,151.73,151.71,24.82]
[1745520603014,23.80673728,151.78,151.71,24.82]
[1745520603514,14.87997123,151.76,151.71,24.82]
[1745520603810,6.5889,151.72,151.71,24.82]
[1745520604116,14.87997123,151.72,151.67,24.8]
[1745520604311,14.87997123,151.7,151.67,24.8]
[1745520605315,6.5907,151.68,151.67,24.8]
[1745520605612,21.47067123,151.68,151.67,24.8]
[1745520605814,6.5921,151.65,151.64,24.8]
[1745520606007,14.87997123,151.68,151.64,24.8]
[1745520606416,6.592,151.65,151.64,24.8]
[1745520607711,6.5917,151.66,151.64,24.8]
[1745520607910,14.87997123,151.68,151.64,24.8]
[1745520608110,14.87997123,151.7,151.64,24.8]
[1745520608309,6.5905,151.69,151.65,6.5919]
[1745520608508,14.87997123,151.7,151.64,24.8]
[1745520609014,6.5912,151.67,151.64,24.8]
[1745520609214,14.87997123,151.68,151.64,24.8]
[1745520609615,6.5923,151.65,151.61,24.82]
[1745520610416,6.5923,151.65,151.61,31.4136]
[1745520610712,14.87997123,151.68,151.61,24.82]
[1745520611318,6.5918,151.66,151.61,24.82]
[1745520611618,6.5918,151.66,151.62,6.5932]
[1745520611816,6.5913,151.67,151.61,39.69997123]
[1745520612016,14.87997123,151.7,151.61,39.69997123]
[1745520612215,14.87997123,151.7,151.64,6.5922]
[1745520612411,39.67997123,151.72,151.65,24.8]
[1745520612616,14.87997123,151.74,151.65,39.67997123]
[1745520612814,14.87997123,151.74,151.66,6.1065]
[1745520613115,76.92058078,151.76,151.67,14.87997123]
[1745520613416,6.5906,151.69,151.66,6.1065]
[1745520613615,6.5906,151.69,151.67,6.61208033]
[1745520613819,14.87997123,151.72,151.65,24.8]
[1745520614018,14.87997123,151.7,151.66,6.61154579]
[1745520614217,14.87997123,151.68,151.65,24.8]